Cogmind - Beta 14 *** ADVENTURER MODE // 2024.08.09 @ 13:23:15 Player: AnotherZach Result: Destroyed by 4P-G73(R) with Subdweller Machine Gun Performance ------------- Evolutions (0) 0 Regions Visited (2) 400 Robots Destroyed (39) 195 Value Destroyed (944) 944 Prototype IDs (0) 0 Alien Tech Used (0) 0 Bonus (0) 0 TOTAL SCORE: 1539 Bonus ------- None Cogmind --------- Core Integrity 0/250 Matter 300/300 Energy 200/200 System Corruption 0% Temperature Cool (0) Movement Rolling (129) Ox2 Location -10/Subcaves Parts ------- > --- POWER (1) -------- Subdweller Power Source > --- PROPULSION (2) --- Compact Wheel Subdweller Monowheel > --- UTILITY (2) ------ Disposable Heat Sink Huge Storage Unit > --- WEAPON (2) ------- Subdweller Laser Beam Cannon > --- INVENTORY (25) --- Light Ion Engine Light Treads Light Treads Heat Sink Medium Storage Unit Weight Redist. System Subdweller Optics Signal Interpreter Terrain Scanner Terrain Scan Processor Seismic Detector Weapon Shielding Weapon Shielding Light Armor Plating Scrap Shield Makeshift Hacking Suite Makeshift System Shield Beam Cannon Barrage Gun Light Cannon Mining Laser Makeshift Hammer Peak State ------------ > --- POWER ------------ Subdweller Power Source > --- PROPULSION ------- Subdweller Monowheel Subdweller Monowheel > --- UTILITY ---------- Disposable Heat Sink Huge Storage Unit > --- WEAPON ----------- Light Assault Rifle Makeshift Hammer > --- INVENTORY -------- Light Ion Engine Light Treads Light Treads Light Treads Compact Wheel Flight Unit Flight Unit Heat Sink Medium Storage Unit Weight Redist. System Subdweller Optics Signal Interpreter Terrain Scanner Terrain Scan Processor Seismic Detector Weapon Shielding Weapon Shielding Weapon Shielding Light Armor Plating Makeshift Hacking Suite Beam Cannon Beam Cannon Barrage Gun Light Cannon Mining Laser [Rating: 17] Favorites ----------- Power Ion Engine Engine Ion Engine Propulsion Subdweller Monowheel Treads Light Treads Wheel Subdweller Monowheel Utility Huge Storage Unit Device Disposable Heat Sink Storage Huge Storage Unit Protection Weapon Shielding Weapon Light Assault Rifle Energy Gun Subdweller Laser Energy Cannon Beam Cannon Ballistic Gun Light Assault Rifle Ballistic Cannon Light Cannon Launcher Grenade Launcher Special Weapon Mining Laser Impact Weapon Makeshift Hammer Build | -11 -10 -10 ------- Run | Yrd Mat Sub Slots Evolved . | . . . Power . | . . . Propulsion . | . . . Utility . | . . . Weapon . | . . . Parts Attached 46 | 8 16 22 Power 8 | 2 1 5 Engine 8 | 2 1 5 Core . | . . . Reactor . | . . . Propulsion 12 | 2 6 4 Treads 4 | 2 2 . Leg . | . . . Wheel 8 | . 4 4 Hover . | . . . Flight . | . . . Utility 7 | 2 3 2 Device 3 | 1 1 1 Storage 2 | 1 1 . Processor . | . . . Hackware . | . . . Protection 2 | . 1 1 Artifact . | . . . Weapon 19 | 2 6 11 Energy Gun 2 | 1 . 1 Energy Cannon 3 | . . 3 Ballistic Gun 6 | 1 1 4 Ballistic Cannon 3 | . 3 . Launcher 3 | . 2 1 Special Weapon 1 | . . 1 Impact Weapon 1 | . . 1 Slashing Weapon . | . . . Piercing Weapon . | . . . Special Melee Weapon . | . . . Unidentified Prototypes . | . . . Parts Lost 5 | . 3 2 Power 2 | . 1 1 Propulsion 2 | . 2 . Utility . | . . . Weapon 1 | . . 1 Highest Loss Streak 3 | . 3 1 To Critical Strikes . | . . . Average Slot Usage (%) 96 | . 93 99 Engine 13 | . 12 13 Treads 3 | . 7 . Wheel 24 | . 20 28 Device 6 | . 3 8 Storage 14 | . 14 14 Protection 7 | . 9 5 Energy Gun 4 | . 2 7 Energy Cannon 5 | . . 9 Ballistic Gun 8 | . 7 9 Ballistic Cannon 5 | . 11 . Launcher 2 | . 3 . Peak Build Rating 17 | 7 9 17 Average Rating 10 | 5 7 13 On Entrance 5 | . 7 9 Naked Turns . | . . . Heaviest Build 93 | 13 92 93 Greatest Support 40 | 40 40 40 Greatest Overweight (x) 4 | 4 4 3 Average Overweight (x) 2 | . 2 2 Largest Inventory Capacity 25 | 8 25 25 Average Capacity 23 | 7 23 25 Most Carried 25 | 5 25 25 Average Carried 19 | 2 15 24 Final Capacity 25 | 8 25 25 Final Carried 25 | 5 25 23 Class Distribution -------------------- 65% | Mutant 34% | Scavenger-Mutant Dominant Class ---------------- Mutant | -10/Materials Scavenger-Mutant | -10/Subcaves Resources | -11 -10 -10 ----------- Run | Yrd Mat Sub Matter Collected 1242 | 285 446 511 Remotely 286 | 285 1 . Salvage Created 955 | 106 433 416 Parts 67 | 5 39 23 Haulers Intercepted 2 | . 2 . Recyclers Shooed 1 | 1 . . Parts Field Recycled . | . . . Retrieved Matter . | . . . Parts Self-Destructed 11 | . . 11 Prevented . | . . . Kills | -11 -10 -10 ------- Run | Yrd Mat Sub Combat Hostiles Destroyed 26 | . 14 12 Melee 1 | . . 1 Guns 4 | . . 4 Cannons 9 | . 7 2 AOE 12 | . 7 5 Classes Destroyed 9 | 2 6 1 Worker 3 | . 3 . Builder 1 | . 1 . Tunneler 2 | 1 1 . Hauler 2 | . 2 . Recycler 2 | 1 1 . Watcher 3 | . 3 . Swarmer 6 | . 6 . Grunt 8 | . 8 . Subdweller 12 | . . 12 Best Kill Streak 8 | 1 8 3 Combat Bots Only 4 | . 4 3 Max Kills in Single Turn 3 | 1 3 2 Gunslinging . | . . . Exploded 2 | . 2 2 Melee 1 | . . 1 Uniques/NPCs Destroyed . | . . . Combat | -11 -10 -10 -------- Run | Yrd Mat Sub Hostile Shots Fired 126 | . 79 47 Missed 35 | . 26 9 Damage Taken 1155 | . 507 648 Core 264 | . 31 233 Absorbed by Shields . | . . . Redirected to Shielding 62 | . 23 39 Ignored by Resistances 333 | . 153 180 Regen/Repaired (Parts) 83 | . 83 . Core Remaining (%) 100 | 100 . . Volleys Fired 129 | 5 75 49 Largest 2 | 2 2 2 Hottest 160 | 60 65 160 Shots Fired 201 | 10 102 89 Gun 93 | 10 22 61 Cannon 83 | . 64 19 Launcher 24 | . 16 8 Special 1 | . . 1 Kinetic 140 | 5 81 54 Thermal 37 | 5 5 27 Explosive 24 | . 16 8 Electromagnetic . | . . . Robot Hit Streak 20 | 8 17 20 Robot Miss Streak 2 | . 2 1 Penetration Max . | . . . Secondary Targets . | . . . Shots Hit Robots 145 | 8 70 67 Core Hits 62 | 4 35 23 Critical Kills . | . . . Critical Parts Destroyed . | . . . Critical Strikes 4 | . 3 1 Destroy 1 | . . 1 Blast 3 | . 3 . Melee Attacks 1 | . . 1 Impact 1 | . . 1 Slashing . | . . . Piercing . | . . . Sneak Attacks . | . . . Combat Hostiles . | . . . Follow-up Attacks . | . . . Damage Inflicted 2876 | 80 1458 1338 Guns 720 | 80 134 506 Cannons 1019 | . 810 209 Explosions 1091 | . 514 577 Melee 46 | . . 46 Ramming . | . . . Kinetic 1298 | 25 891 382 Thermal 441 | 55 53 333 Explosive 1091 | . 514 577 Electromagnetic . | . . . Impact 46 | . . 46 Slashing . | . . . Piercing . | . . . Highest Corruption . | . . . Average Corruption . | . . . Corruption Purged . | . . . Corruption Blocked . | . . . Overload Shots . | . . . Overflow Damage 15 | . 15 . Projectiles 8 | . 8 . Explosions 7 | . 7 . Melee . | . . . Knockbacks 7 | . 7 . Impact . | . . . Kinetic 7 | . 7 . Secondary . | . . . Self-Inflicted Damage 29 | . 24 5 Shots 2 | . 1 1 Rammed . | . . . Targets Rammed . | . . . Kicked . | . . . Crushed . | . . . Highest Temperature 42 | 40 42 24 Average Temperature 14 | 20 13 15 Received Heat Transfer 477 | . 336 141 Siege Activations . | . . . Robots Corrupted . | . . . Combat Hostiles . | . . . Parts Fried . | . . . Impact Corruptions . | . . . Robots Melted . | . . . Combat Hostiles . | . . . Parts Melted 1 | . . 1 Heat Transferred 844 | 125 125 594 Parts Sabotaged . | . . . Parts Stolen . | . . . Parts Stripped . | . . . Power Chain Reactions . | . . . Alert | -11 -10 -10 ------- Run | Yrd Mat Sub Peak Influence 350 | 10 350 . Initial 5 | . 5 . Average 106 | 6 114 . Maximum Alert Level 1 | . 1 . Low Security (%) 78 | 100 76 . Level 1 21 | . 23 . Level 2 . | . . . Level 3 . | . . . Level 4 . | . . . Level 5 . | . . . High Security . | . . . Max Security . | . . . Squads Dispatched 2 | . 2 . Investigation 2 | . 2 . Extermination . | . . . Reinforcement . | . . . Assault . | . . . Garrison . | . . . Intercept . | . . . Searches Triggered . | . . . Construction Impeded . | . . . Haulers Reinforced . | . . . Active Scanning Responses . | . . . Cargo Convoy Interrupts . | . . . Stealth | -11 -10 -10 --------- Run | Yrd Mat Sub Distress Signals 4 | . 4 . Communications Jammed . | . . . Distress Signals . | . . . Times Spotted 37 | . 24 13 Peak Tracking Total 7 | . 7 4 Tactical Retreats 2 | . 2 . Traps | -11 -10 -10 ------- Run | Yrd Mat Sub Traps Triggered 1 | . 1 . Indirectly . | . . . Trap Hack Attempts . | . . . Triggered . | . . . Disarmed . | . . . Reprogrammed . | . . . Reused . | . . . Traps Extracted . | . . . Installed 1 | . . 1 Triggered . | . . . Machines | -11 -10 -10 ---------- Run | Yrd Mat Sub Machines Disabled 2 | . 2 . Max in Single Turn 1 | . 1 . Machines Repaired . | . . . Machines Dismantled . | . . . Machines Sabotaged . | . . . Overloaded Fab Kills . | . . . Hacking | -11 -10 -10 --------- Run | Yrd Mat Sub Machines Accessed 9 | . 9 . Terminals 7 | . 7 . Fabricators . | . . . Repair Stations 1 | . 1 . Recycling Units 1 | . 1 . Scanalyzers . | . . . Garrison Access . | . . . Total Hacks 32 | . 32 . Successful 21 | . 21 . Failed 11 | . 11 . Catastrophic . | . . . Database Lockouts . | . . . Manual 23 | . 23 . Terminals 24 | . 24 . Fabricators . | . . . Repair Stations 3 | . 3 . Recycling Units 5 | . 5 . Scanalyzers . | . . . Garrison Access . | . . . Terminal Hacks 4 | . 4 . Part Schematic 1 | . 1 . Robot Schematic 1 | . 1 . Unreport Threat 1 | . 1 . Locate Traps 1 | . 1 . Fabricator Hacks . | . . . Repair Station Hacks 3 | . 3 . Scan Component 1 | . 1 . Repair 1 | . 1 . Refit 1 | . 1 . Recycling Unit Hacks 2 | . 2 . Retrieve Components 2 | . 2 . Scanalyzer . | . . . Garrison Access Hacks . | . . . Unauthorized Hacks 12 | . 12 . Terminals 11 | . 11 . Track 2 | . 2 . Botnet 3 | . 3 . Skim 6 | . 6 . Fabricators . | . . . Repair Stations . | . . . Recycling Units 1 | . 1 . Mask 1 | . 1 . Scanalyzers . | . . . Garrison Access . | . . . Data Cores Recovered . | . . . Used . | . . . Hacking Detections 9 | . 9 . Full Trace Events 3 | . 3 . Feedback Events . | . . . Feedback Blocked . | . . . Robot Schematics Acquired 1 | . 1 . Robots Built . | . . . Authchips . | . . . Time . | . . . Total Robot Build Rating . | . . . Part Schematics Acquired 1 | . 1 . Parts Built . | . . . Authchips . | . . . Time . | . . . Total Part Build Rating . | . . . Parts Repaired 1 | . 1 . Time 26 | . 26 . Parts Recycled . | . . . Recycled Matter . | . . . Retrieved Matter . | . . . Retrieved Components 1 | . 1 . Parts Scanalyzed . | . . . Part Schematics Acquired . | . . . Parts Damaged . | . . . Bothacking | -11 -10 -10 ------------ Run | Yrd Mat Sub Used RIF Installer . | . . . Robots Hacked . | . . . Non-combat . | . . . Combat . | . . . Robot Hacks Applied . | . . . Relay Couplers Released . | . . . Fabnet Peak Effective % . | . . . Robots Rewired . | . . . Allies Hacked . | . . . Hacks Repelled . | . . . Allies | -11 -10 -10 -------- Run | Yrd Mat Sub Total Allies . | . . . Largest Group . | . . . Highest-Rated Group . | . . . Highest-Rated Ally . | . . . Total Orders . | . . . Ally Attacks . | . . . Total Damage . | . . . Kills . | . . . Allies Corrupted . | . . . Allies Melted . | . . . Intel | -11 -10 -10 ------- Run | Yrd Mat Sub Robot Analysis Total . | . . . Derelict Logs Recovered . | . . . Drone Launches . | . . . Drone Recoveries . | . . . Exploration | -11 -10 -10 ------------- Run | Yrd Mat Sub Turns Passed 2914 | 110 1300 1504 Spaces Moved 1745 | 49 683 1013 Core 15 | 15 . . Treads 157 | 34 123 . Legs . | . . . Wheels 1573 | . 560 1013 Hover . | . . . Flight . | . . . Fastest Speed 50 | 50 135 129 Average Speed 138 | 152 150 129 Slowest Speed 320 | 250 320 135 Overloaded Moves . | . . . Propulsion Burnouts . | . . . Robots Hopped . | . . . Cave-ins Triggered . | . . . Exploration Rate (%) 50 | 5 92 55 Regions Visited 2 Branch Regions 1 Pre-discovered Areas . | . . . Known Exits Taken 1 | . 1 . Unknown Exits Taken 1 | 1 . . Scrap Searched 5 | . . 5 Spaces Dug 15 | . 15 . Terrain Destroyed 76 | . 59 17 Melee . | . . . Projectile 1 | . . 1 AOE 75 | . 59 16 Terrain Rammed . | . . . Walls Destroyed . | . . . Machines Disabled . | . . . Actions | -11 -10 -10 --------- Run | Yrd Mat Sub Total 2045 | 75 853 1117 Wait 41 | . 41 . Move 1743 | 48 682 1013 Hop . | . . . Pick Up 59 | 13 31 15 Fast Attach . | . . . Attach 17 | 7 5 5 Detach . | . . . Swap 29 | 1 11 17 Drop 25 | 1 8 16 Fire 129 | 5 75 49 Melee 1 | . . 1 Ram . | . . . Kick . | . . . Crush . | . . . Escape Stasis . | . . . Rewire . | . . . Trap 1 | . . 1 Miscellaneous . | . . . Route ------- -11/Scrapyard -10/Materials (discovered 6 exits: [*Mat x3] / [*Min x2] / *Sub) -10/Subcaves (discovered 2 exits: [*Mat x2]) History --------- Turn | Location | Event 18 | -11/Scrapyard | Discovered new exit (range 15) 111 | -11/Scrapyard | Entered Materials 273 | -10/Materials | Discovered new exit (range 10) 318 | -10/Materials | Build established: Mutant 551 | -10/Materials | Discovered new exit (range 8) 658 | -10/Materials | Discovered new exit (range 3) 721 | -10/Materials | Lost 3 parts (1p2n) 872 | -10/Materials | Repaired Lgt. Cannon 1126 | -10/Materials | Discovered new exit (range 9) 1177 | -10/Materials | Discovered new exit (range 16) 1269 | -10/Materials | Identified exit to Subcaves 1269 | -10/Materials | Learned location of 1 exit from Materials 1411 | -10/Materials | Entered Subcaves 1427 | -10/Subcaves | Shifting Twisted Machinery released Sub. Machine Gun 1910 | -10/Subcaves | Core integrity fell below 50% 2049 | -10/Subcaves | A swath of the cavern ceiling suddenly collapsed 2083 | -10/Subcaves | Discovered new exit (range 5) 2157 | -10/Subcaves | Core integrity fell below 20% 2211 | -10/Subcaves | Build established: Scavenger-Mutant 2645 | -10/Subcaves | Discovered new exit (range 5) 2909 | -10/Subcaves | Disturbed a concealed Subdweller 2915 | -10/Subcaves | Destroyed by 4P-G73(R) with Subdweller Machine Gun Last Messages --------------- 02727_ Y1-KD8(u) tweaks Twisted Machinery. 02729_ ET-8ZF(u) tweaks Twisted Machinery. 02735_ Sub. Monowheel shoots sparks and powers down. 02736_ Dropped Broken Sub. Monowheel. 02743_ ET-8ZF(u) tweaks Twisted Machinery. 02819_ Searching scrap... 02819_ Found Mak. System Shield. 02819_ Found Sub. Optics. 02819_ Found 68 Matter. 02820_ Acquired 63 matter. 02821_ Searching scrap... 02821_ Found Sub. Monowheel. 02821_ Found 41 Matter. 02823_ Dropped Lgt. Treads. 02824_ Acquired Mak. System Shield. 02909_ 4P-G73(R) angrily emerges from the Twisted Machinery. 02912_ 4P-G73(R) affixes Scrap Shield Fragment to Scrap Shield. Map ----- +----------------------------------------------------+ | ??????????#" "## #### #???????????? | | ????????### ""### ### #???????????? | | ????????# ###?# #???????????? | | ????????#####???# ##??????????? | | ????????????????## #??????????? | | ?????????????????## #??????????? | | ??????????????????#### #??????????? | | ????????????????????# #??????????? | | ????????????????????# ##??????????? | | ????????????????????## #????????#??? | | ????????????????????# ##?????# ##?? | | ????????????????????# #??"" ##? | | ????????????????????# ##??"" #? | | ????????????????????# #??? "" ## | | ????????????????????# ##?? #? | | ????????????????????# ### #?? | | ????????????????????## #?## | | ?????????????????????# ###? # | | ?????????????????????# ##?? | | ?????????????????????# ### | | ?????????????????????### # ## | | ???????????????????????# ## | | ???????????????###????## ## " | | ?????????####### ##???# # "" | | ?????????#